[Event "Gibraltar Masters 18th"]
[Site "Gibraltar"]
[Date "2020.01.30"]
[Round "10.45"]
[White "Henderson De La Fuente, Lance"]
[Black "Krishna, C R G."]
[Result "1/2-1/2"]
[ECO "D15"]
[WhiteElo "2492"]
[BlackElo "2436"]
[PlyCount "119"]
[EventDate "2020.01.21"]
[EventType "swiss"]
[EventRounds "10"]
[EventCountry "GGB"]
[SourceTitle "BritBase"]
[Source "John Saunders"]
[SourceDate "2021.06.05"]
[SourceVersion "1"]
[SourceVersionDate "2021.06.05"]
[SourceQuality "1"]
[TimeControl "40/100:0"]
[WhiteClock "0:23:23"]
[BlackClock "0:04:42"]

1. d4 {[%emt 0:00:00]} d5 {[%emt 0:00:00]} 2. Nf3 {[%emt 0:00:00]} Nf6 {
[%emt 0:00:00]} 3. c4 {[%emt 0:00:00]} c6 {[%emt 0:00:00]} 4. e3 {[%emt 0:00:
00]} Bf5 {[%emt 0:00:00]} 5. Nc3 {[%emt 0:00:00]} a6 {[%emt 0:00:00]} 6. Be2 {
[%emt 0:00:00]} h6 {[%emt 0:00:00]} 7. Bd3 {[%emt 0:00:00]} Bxd3 {[%emt 0:00:
00]} 8. Qxd3 {[%emt 0:00:00]} e6 {[%emt 0:00:00]} 9. O-O {[%emt 0:00:00]} Be7 {
[%emt 0:00:00]} 10. b3 {[%emt 0:00:00]} O-O {[%emt 0:00:00]} 11. Bb2 {[%emt 0:
00:00]} Nbd7 {[%emt 0:00:00]} 12. Rac1 {[%emt 0:00:00]} b5 {[%emt 0:00:00]} 13.
cxd5 {[%emt 0:00:00]} cxd5 {[%emt 0:00:00]} 14. Rc2 {[%emt 0:00:00]} Qb6 {
[%emt 0:00:00]} 15. Rfc1 {[%emt 0:00:00]} Qb7 {[%emt 0:00:00]} 16. Ne2 {
[%emt 0:00:00]} Rfc8 {[%emt 0:00:00]} 17. Ne5 {[%emt 0:00:00]} Nb6 {[%emt 0:00:
00]} 18. Nf4 {[%emt 0:00:00]} Bd6 {[%emt 0:00:00]} 19. Qd1 {[%emt 0:00:00]}
Rxc2 {[%emt 0:00:00]} 20. Rxc2 {[%emt 0:00:00]} Rc8 {[%emt 0:00:00]} 21. Nfd3 {
[%emt 0:00:00]} Nfd7 {[%emt 0:00:00]} 22. Bc3 {[%emt 0:00:00]} Nxe5 {[%emt 0:
00:00]} 23. dxe5 {[%emt 0:00:00]} Be7 {[%emt 0:00:00]} 24. Bd4 {[%emt 0:00:00]}
Rxc2 {[%emt 0:00:00]} 25. Qxc2 {[%emt 0:00:00]} Nc8 {[%emt 0:00:00]} 26. f4 {
[%emt 0:00:00]} Na7 {[%emt 0:00:00]} 27. Bc5 {[%emt 0:00:00]} Qc7 {[%emt 0:00:
00]} 28. Qc3 {[%emt 0:00:00]} a5 {[%emt 0:00:00]} 29. a3 {[%emt 0:00:00]} Bxc5
{[%emt 0:00:00]} 30. Qxc5 {[%emt 0:00:00]} Qxc5 {[%emt 0:00:00]} 31. Nxc5 {
[%emt 0:00:00]} Kf8 {[%emt 0:00:00]} 32. Kf2 {[%emt 0:00:00]} Ke7 {[%emt 0:00:
00]} 33. e4 {[%emt 0:00:00]} dxe4 {[%emt 0:00:00]} 34. Ke3 {[%emt 0:00:00]} Nc6
{[%emt 0:00:00]} 35. Kxe4 {[%emt 0:00:00]} h5 {[%emt 0:00:00]} 36. h3 {[%emt 0:
00:00]} Na7 {[%emt 0:00:00]} 37. g4 {[%emt 0:00:00]} hxg4 {[%emt 0:00:00]} 38.
hxg4 {[%emt 0:00:00]} Nc6 {[%emt 0:00:00]} 39. Nd3 {[%emt 0:00:00]} g6 {
[%emt 0:00:00]} 40. Nc5 {[%emt 0:00:00]} Nd8 {[%emt 0:01:05]} 41. g5 {[%emt 0:
00:45]} Nc6 {[%emt 0:01:15]} 42. Kd3 {[%emt 0:00:00]} Kd8 {[%emt 0:00:00]} 43.
Nb7+ {[%emt 0:00:00]} Kc7 {[%emt 0:00:00]} 44. Nd6 {[%emt 0:00:00]} b4 {
[%emt 0:00:00]} 45. axb4 {[%emt 0:00:00]} Nxb4+ {[%emt 0:00:00]} 46. Ke4 {
[%emt 0:00:00]} Kb6 {[%emt 0:00:00]} 47. Nxf7 {[%emt 0:00:00]} Nc6 {[%emt 0:00:
00]} 48. Nh8 {[%emt 0:00:00]} Ne7 {[%emt 0:00:00]} 49. Nxg6 {[%emt 0:00:00]}
Nxg6 {[%emt 0:00:00]} 50. f5 {[%emt 0:00:00]} Ne7 {[%emt 0:00:00]} 51. f6 {
[%emt 0:00:00]} Ng6 {[%emt 0:00:00]} 52. Kf3 {[%emt 0:00:00]} Kc6 {[%emt 0:00:
00]} 53. Kg4 {[%emt 0:00:00]} Kd7 {[%emt 0:00:00]} 54. Kh5 {[%emt 0:00:00]}
Nxe5 {[%emt 0:00:00]} 55. g6 {[%emt 0:00:00]} Ke8 {[%emt 0:00:00]} 56. Kh6 {
[%emt 0:00:00]} Nd7 {[%emt 0:00:00]} 57. Kg7 {[%emt 0:00:00]} Nf8 {[%emt 0:00:
00]} 58. Kh6 {[%emt 0:00:00]} Nd7 {[%emt 0:00:00]} 59. Kg7 {[%emt 0:00:00]} Nf8
{[%emt 0:00:00]} 60. Kh6 {[%emt 0:00:00]} 1/2-1/2

[Event "Gibraltar Masters 18th"]
[Site "Gibraltar"]
[Date "2020.01.30"]
[Round "10.46"]
[White "Salimova, Nurgyul"]
[Black "Raja, Harshit"]
[Result "0-1"]
[ECO "E04"]
[WhiteElo "2372"]
[BlackElo "2482"]
[PlyCount "106"]
[EventDate "2020.01.21"]
[EventType "swiss"]
[EventRounds "10"]
[EventCountry "GGB"]
[SourceTitle "BritBase"]
[Source "John Saunders"]
[SourceDate "2021.06.05"]
[SourceVersion "1"]
[SourceVersionDate "2021.06.05"]
[SourceQuality "1"]
[TimeControl "40/100:0"]
[WhiteClock "0:46:52"]
[BlackClock "0:33:10"]

1. d4 {[%emt 0:00:00]} Nf6 {[%emt 0:00:00]} 2. c4 {[%emt 0:00:00]} e6 {[%emt 0:
00:00]} 3. Nf3 {[%emt 0:00:00]} d5 {[%emt 0:00:00]} 4. g3 {[%emt 0:00:00]} dxc4
{[%emt 0:00:00]} 5. Bg2 {[%emt 0:00:00]} a6 {[%emt 0:00:00]} 6. a4 {[%emt 0:00:
00]} Nc6 {[%emt 0:00:00]} 7. O-O {[%emt 0:00:00]} Rb8 {[%emt 0:00:00]} 8. e3 {
[%emt 0:00:00]} Bb4 {[%emt 0:00:00]} 9. Qc2 {[%emt 0:00:00]} b5 {[%emt 0:00:00]
} 10. axb5 {[%emt 0:00:00]} axb5 {[%emt 0:00:00]} 11. b3 {[%emt 0:00:00]} Na5 {
[%emt 0:00:00]} 12. bxc4 {[%emt 0:00:00]} Nxc4 {[%emt 0:00:00]} 13. Na3 {
[%emt 0:00:00]} Bxa3 {[%emt 0:00:00]} 14. Bxa3 {[%emt 0:00:00]} Bb7 {[%emt 0:
00:00]} 15. Bb4 {[%emt 0:00:00]} Be4 {[%emt 0:00:00]} 16. Qc1 {[%emt 0:00:00]}
Qd5 {[%emt 0:00:00]} 17. Ne1 {[%emt 0:00:00]} Bxg2 {[%emt 0:00:00]} 18. Nxg2 {
[%emt 0:00:00]} Qf3 {[%emt 0:00:00]} 19. Ra7 {[%emt 0:00:00]} Kd7 {[%emt 0:00:
00]} 20. e4 {[%emt 0:00:00]} Nxe4 {[%emt 0:00:00]} 21. Nh4 {[%emt 0:00:00]} Qf6
{[%emt 0:00:00]} 22. Qc2 {[%emt 0:04:42]} Ned6 {[%emt 0:00:00]} 23. Bxd6 {
[%emt 0:00:00]} Kxd6 {[%emt 0:00:00]} 24. d5 {[%emt 0:00:00]} exd5 {[%emt 0:00:
00]} 25. Nf5+ {[%emt 0:00:00]} Kd7 {[%emt 0:00:00]} 26. Ne3 {[%emt 0:00:00]}
Qb6 {[%emt 0:00:00]} 27. Qf5+ {[%emt 0:00:00]} Qe6 {[%emt 0:00:00]} 28. Qf4 {
[%emt 0:00:00]} Rhc8 {[%emt 0:00:00]} 29. Re1 {[%emt 0:00:00]} Nd6 {[%emt 0:00:
00]} 30. Rc1 {[%emt 0:00:00]} Ra8 {[%emt 0:00:00]} 31. Rxa8 {[%emt 0:00:00]}
Rxa8 {[%emt 0:00:00]} 32. Qd4 {[%emt 0:03:17]} Ra6 {[%emt 0:00:40]} 33. Nxd5 {
[%emt 0:00:00]} Rc6 {[%emt 0:00:00]} 34. Rd1 {[%emt 0:00:00]} f6 {[%emt 0:00:
00]} 35. Nf4 {[%emt 0:00:00]} Qe5 {[%emt 0:00:00]} 36. Qd3 {[%emt 0:00:00]} g6
{[%emt 0:00:07]} 37. Qb3 {[%emt 0:00:00]} Rc4 {[%emt 0:00:04]} 38. Qf3 {
[%emt 0:00:00]} Qe4 {[%emt 0:00:04]} 39. Qg4+ {[%emt 0:00:00]} Kc6 {[%emt 0:00:
00]} 40. Qh3 {[%emt 0:00:00]} Qf3 {[%emt 0:00:09]} 41. Qf1 {[%emt 0:00:00]} Kb7
{[%emt 0:00:00]} 42. Nd5 {[%emt 0:00:00]} Rc2 {[%emt 0:00:00]} 43. Ne3 {
[%emt 0:00:00]} Rb2 {[%emt 0:00:00]} 44. Rc1 {[%emt 0:00:00]} f5 {[%emt 0:00:
00]} 45. Nd1 {[%emt 0:00:00]} Rd2 {[%emt 0:00:00]} 46. Nc3 {[%emt 0:00:00]} Qd3
{[%emt 0:00:00]} 47. Qxd3 {[%emt 0:00:00]} Rxd3 {[%emt 0:00:00]} 48. Kf1 {
[%emt 0:00:00]} Rd2 {[%emt 0:00:00]} 49. Ke1 {[%emt 0:00:00]} Rb2 {[%emt 0:00:
00]} 50. Nd5 {[%emt 0:00:00]} c6 {[%emt 0:00:00]} 51. Ne7 {[%emt 0:00:00]} Nc4
{[%emt 0:00:00]} 52. h4 {[%emt 0:00:00]} Ne5 {[%emt 0:00:00]} 53. Rd1 {[%emt 0:
00:00]} b4 {[%emt 0:00:00]} 0-1

[Event "Gibraltar Masters 18th"]
[Site "Gibraltar"]
[Date "2020.01.30"]
[Round "10.47"]
[White "Pogonina, Natalija"]
[Black "Haug, Johannes"]
[Result "1/2-1/2"]
[ECO "E11"]
[WhiteElo "2479"]
[BlackElo "2407"]
[PlyCount "89"]
[EventDate "2020.01.21"]
[EventType "swiss"]
[EventRounds "10"]
[EventCountry "GGB"]
[SourceTitle "BritBase"]
[Source "John Saunders"]
[SourceDate "2021.06.05"]
[SourceVersion "1"]
[SourceVersionDate "2021.06.05"]
[SourceQuality "1"]
[TimeControl "40/100:0"]
[WhiteClock "0:51:09"]
[BlackClock "0:47:51"]

1. d4 {[%emt 0:00:00]} Nf6 {[%emt 0:00:00]} 2. c4 {[%emt 0:00:00]} e6 {[%emt 0:
00:00]} 3. g3 {[%emt 0:00:00]} Bb4+ {[%emt 0:00:00]} 4. Bd2 {[%emt 0:00:00]} a5
{[%emt 0:00:00]} 5. Bg2 {[%emt 0:00:00]} d5 {[%emt 0:00:00]} 6. Nf3 {[%emt 0:
00:00]} O-O {[%emt 0:00:00]} 7. Qb3 {[%emt 0:00:00]} Be7 {[%emt 0:00:00]} 8.
O-O {[%emt 0:00:00]} c6 {[%emt 0:00:00]} 9. Rd1 {[%emt 0:00:00]} b5 {[%emt 0:
00:00]} 10. c5 {[%emt 0:00:00]} Ne4 {[%emt 0:00:00]} 11. Bf4 {[%emt 0:00:00]}
Nd7 {[%emt 0:00:00]} 12. Nc3 {[%emt 0:00:00]} g5 {[%emt 0:00:00]} 13. Nxe4 {
[%emt 0:00:00]} gxf4 {[%emt 0:00:00]} 14. Nd6 {[%emt 0:00:00]} fxg3 {[%emt 0:
00:00]} 15. hxg3 {[%emt 0:00:00]} Bxd6 {[%emt 0:00:00]} 16. cxd6 {[%emt 0:00:
00]} Nb6 {[%emt 0:00:00]} 17. Qc2 {[%emt 0:00:00]} Qxd6 {[%emt 0:00:00]} 18.
Rac1 {[%emt 0:00:00]} Bd7 {[%emt 0:00:00]} 19. Ne5 {[%emt 0:00:00]} Be8 {
[%emt 0:00:00]} 20. e4 {[%emt 0:00:00]} f6 {[%emt 0:00:00]} 21. Nd3 {[%emt 0:
00:00]} dxe4 {[%emt 0:00:00]} 22. Bxe4 {[%emt 0:00:00]} Ra7 {[%emt 0:00:00]}
23. Nf4 {[%emt 0:00:00]} Rg7 {[%emt 0:00:00]} 24. Kh2 {[%emt 0:00:00]} Nd5 {
[%emt 0:00:00]} 25. Bxd5 {[%emt 0:00:00]} exd5 {[%emt 0:00:00]} 26. Re1 {
[%emt 0:00:00]} Bd7 {[%emt 0:00:00]} 27. Qd2 {[%emt 0:00:00]} a4 {[%emt 0:00:
00]} 28. Kg2 {[%emt 0:00:00]} Re8 {[%emt 0:00:00]} 29. Rxe8+ {[%emt 0:00:00]}
Bxe8 {[%emt 0:00:00]} 30. Rh1 {[%emt 0:00:00]} Bg6 {[%emt 0:00:00]} 31. Nxg6 {
[%emt 0:00:00]} hxg6 {[%emt 0:00:00]} 32. Qa5 {[%emt 0:00:00]} Rd7 {[%emt 0:00:
00]} 33. Rc1 {[%emt 0:00:00]} Kg7 {[%emt 0:00:14]} 34. Qa8 {[%emt 0:00:00]} Qe6
{[%emt 0:00:13]} 35. Qxc6 {[%emt 0:00:00]} Qe4+ {[%emt 0:00:00]} 36. Kg1 {
[%emt 0:00:00]} Rf7 {[%emt 0:00:33]} 37. Qc3 {[%emt 0:00:42]} Re7 {[%emt 0:00:
00]} 38. Qb4 {[%emt 0:00:03]} g5 {[%emt 0:00:00]} 39. Qd6 {[%emt 0:00:10]} Kg6
{[%emt 0:00:04]} 40. Rc6 {[%emt 0:00:08]} Qe1+ {[%emt 0:00:00]} 41. Kg2 {
[%emt 0:01:14]} Qe4+ {[%emt 0:01:36]} 42. Kg1 {[%emt 0:00:32]} Qe1+ {[%emt 0:
00:00]} 43. Kg2 {[%emt 0:00:00]} Qe4+ {[%emt 0:00:00]} 44. Kg1 {[%emt 0:00:00]}
Qe1+ {[%emt 0:00:00]} 45. Kg2 {[%emt 0:00:00]} 1/2-1/2

[Event "Gibraltar Masters 18th"]
[Site "Gibraltar"]
[Date "2020.01.30"]
[Round "10.48"]
[White "Beinoras, Mindaugas"]
[Black "Quintiliano Pinto, Renato R"]
[Result "1/2-1/2"]
[ECO "D36"]
[WhiteElo "2355"]
[BlackElo "2471"]
[PlyCount "131"]
[EventDate "2020.01.21"]
[EventType "swiss"]
[EventRounds "10"]
[EventCountry "GGB"]
[SourceTitle "BritBase"]
[Source "John Saunders"]
[SourceDate "2021.06.05"]
[SourceVersion "1"]
[SourceVersionDate "2021.06.05"]
[SourceQuality "1"]
[TimeControl "40/100:0"]
[WhiteClock "0:12:49"]
[BlackClock "0:17:14"]

1. d4 {[%emt 0:00:00]} d5 {[%emt 0:00:00]} 2. c4 {[%emt 0:00:00]} e6 {[%emt 0:
00:00]} 3. Nc3 {[%emt 0:00:00]} Nf6 {[%emt 0:00:00]} 4. cxd5 {[%emt 0:00:00]}
exd5 {[%emt 0:00:00]} 5. Bg5 {[%emt 0:00:00]} c6 {[%emt 0:00:00]} 6. e3 {
[%emt 0:00:00]} Be7 {[%emt 0:00:00]} 7. Qc2 {[%emt 0:00:00]} Nbd7 {[%emt 0:00:
00]} 8. Bd3 {[%emt 0:00:00]} Nh5 {[%emt 0:00:00]} 9. Bxe7 {[%emt 0:00:00]} Qxe7
{[%emt 0:00:00]} 10. Nge2 {[%emt 0:00:00]} Nb6 {[%emt 0:00:00]} 11. O-O-O {
[%emt 0:00:00]} g6 {[%emt 0:00:00]} 12. Kb1 {[%emt 0:00:00]} Ng7 {[%emt 0:00:
00]} 13. Ng3 {[%emt 0:00:00]} Be6 {[%emt 0:00:00]} 14. h4 {[%emt 0:00:00]}
O-O-O {[%emt 0:00:00]} 15. Nce2 {[%emt 0:00:00]} h6 {[%emt 0:00:00]} 16. Rh2 {
[%emt 0:00:00]} Kb8 {[%emt 0:00:00]} 17. Nf4 {[%emt 0:00:00]} Bc8 {[%emt 0:00:
00]} 18. Qe2 {[%emt 0:00:00]} Rhe8 {[%emt 0:00:00]} 19. Rc1 {[%emt 0:00:00]}
Nd7 {[%emt 0:00:00]} 20. Bc2 {[%emt 0:00:00]} Nf6 {[%emt 0:00:00]} 21. Rhh1 {
[%emt 0:00:00]} Bg4 {[%emt 0:00:00]} 22. Qe1 {[%emt 0:00:00]} Bc8 {[%emt 0:00:
00]} 23. Ka1 {[%emt 0:00:00]} Ng4 {[%emt 0:00:00]} 24. Bd1 {[%emt 0:00:00]} Nf6
{[%emt 0:00:00]} 25. Bc2 {[%emt 0:00:00]} Bd7 {[%emt 0:00:00]} 26. b4 {[%emt 0:
00:00]} Rc8 {[%emt 0:00:00]} 27. Bd3 {[%emt 0:00:00]} Qd6 {[%emt 0:00:00]} 28.
Qd2 {[%emt 0:00:00]} Ng4 {[%emt 0:00:00]} 29. a3 {[%emt 0:00:00]} Rc7 {[%emt 0:
00:00]} 30. Bc2 {[%emt 0:00:00]} Bc8 {[%emt 0:00:00]} 31. Bd1 {[%emt 0:00:00]}
g5 {[%emt 0:00:00]} 32. hxg5 {[%emt 0:00:00]} hxg5 {[%emt 0:00:00]} 33. Nfh5 {
[%emt 0:00:00]} Nxh5 {[%emt 0:00:00]} 34. Nxh5 {[%emt 0:00:00]} Nh6 {[%emt 0:
00:00]} 35. Bc2 {[%emt 0:00:00]} f5 {[%emt 0:00:00]} 36. Ng3 {[%emt 0:00:00]}
Rce7 {[%emt 0:00:00]} 37. Rce1 {[%emt 0:00:00]} f4 {[%emt 0:00:00]} 38. exf4 {
[%emt 0:00:00]} Rxe1+ {[%emt 0:00:00]} 39. Rxe1 {[%emt 0:00:00]} Rxe1+ {
[%emt 0:00:00]} 40. Qxe1 {[%emt 0:00:00]} Qxf4 {[%emt 0:00:00]} 41. Qe3 {
[%emt 0:00:05]} Ng4 {[%emt 0:00:00]} 42. Qxf4+ {[%emt 0:00:00]} gxf4 {[%emt 0:
00:00]} 43. Ne2 {[%emt 0:00:00]} Nxf2 {[%emt 0:00:00]} 44. Nxf4 {[%emt 0:00:00]
} Kc7 {[%emt 0:00:00]} 45. Kb2 {[%emt 0:00:00]} Kd6 {[%emt 0:00:00]} 46. Kc3 {
[%emt 0:00:00]} Ke7 {[%emt 0:00:00]} 47. b5 {[%emt 0:00:00]} Kd6 {[%emt 0:00:
00]} 48. bxc6 {[%emt 0:00:00]} bxc6 {[%emt 0:00:00]} 49. Kb4 {[%emt 0:00:00]}
Ng4 {[%emt 0:00:00]} 50. Bd3 {[%emt 0:00:00]} Ne3 {[%emt 0:00:00]} 51. g3 {
[%emt 0:00:00]} Bf5 {[%emt 0:00:00]} 52. Bxf5 {[%emt 0:00:00]} Nxf5 {[%emt 0:
00:00]} 53. Ne2 {[%emt 0:00:00]} Nxd4 {[%emt 0:00:00]} 54. Nxd4 {[%emt 0:00:00]
} c5+ {[%emt 0:00:00]} 55. Kc3 {[%emt 0:00:00]} cxd4+ {[%emt 0:00:00]} 56. Kxd4
{[%emt 0:00:00]} a5 {[%emt 0:00:00]} 57. a4 {[%emt 0:00:00]} Ke6 {[%emt 0:00:
00]} 58. g4 {[%emt 0:00:00]} Kd6 {[%emt 0:00:00]} 59. Kd3 {[%emt 0:00:00]} Ke5
{[%emt 0:00:00]} 60. Ke3 {[%emt 0:00:00]} d4+ {[%emt 0:00:00]} 61. Kd3 {
[%emt 0:00:00]} Kf4 {[%emt 0:00:00]} 62. Kxd4 {[%emt 0:00:00]} Kxg4 {[%emt 0:
00:00]} 63. Kc5 {[%emt 0:00:00]} Kf5 {[%emt 0:00:00]} 64. Kb5 {[%emt 0:00:00]}
Ke6 {[%emt 0:00:00]} 65. Kxa5 {[%emt 0:00:00]} Kd7 {[%emt 0:00:00]} 66. Kb6 {
[%emt 0:00:00]} 1/2-1/2

[Event "Gibraltar Masters 18th"]
[Site "Gibraltar"]
[Date "2020.01.30"]
[Round "10.49"]
[White "Cramling, Pia"]
[Black "Low, Zhen Yu Cyrus"]
[Result "1-0"]
[ECO "A10"]
[WhiteElo "2470"]
[BlackElo "2415"]
[PlyCount "99"]
[EventDate "2020.01.21"]
[EventType "swiss"]
[EventRounds "10"]
[EventCountry "GGB"]
[SourceTitle "BritBase"]
[Source "John Saunders"]
[SourceDate "2021.06.05"]
[SourceVersion "1"]
[SourceVersionDate "2021.06.05"]
[SourceQuality "1"]
[TimeControl "40/100:0"]
[WhiteClock "0:34:07"]
[BlackClock "1:08:49"]

1. c4 {[%emt 0:00:00]} g6 {[%emt 0:00:00]} 2. e4 {[%emt 0:00:00]} e5 {[%emt 0:
00:00]} 3. d4 {[%emt 0:00:00]} Nf6 {[%emt 0:00:00]} 4. Nf3 {[%emt 0:00:00]}
exd4 {[%emt 0:00:00]} 5. e5 {[%emt 0:00:00]} Bb4+ {[%emt 0:00:00]} 6. Bd2 {
[%emt 0:00:00]} Qe7 {[%emt 0:00:00]} 7. Bxb4 {[%emt 0:00:00]} Qxb4+ {[%emt 0:
00:00]} 8. Qd2 {[%emt 0:00:00]} Qxd2+ {[%emt 0:00:00]} 9. Nbxd2 {[%emt 0:00:00]
} Nh5 {[%emt 0:00:00]} 10. Nxd4 {[%emt 0:00:00]} Nc6 {[%emt 0:00:00]} 11. Nxc6
{[%emt 0:00:00]} dxc6 {[%emt 0:00:00]} 12. O-O-O {[%emt 0:00:00]} O-O {[%emt 0:
00:00]} 13. g3 {[%emt 0:00:00]} Re8 {[%emt 0:00:00]} 14. f4 {[%emt 0:00:00]} f6
{[%emt 0:00:00]} 15. Be2 {[%emt 0:00:00]} fxe5 {[%emt 0:00:00]} 16. Bxh5 {
[%emt 0:00:00]} gxh5 {[%emt 0:00:00]} 17. Rde1 {[%emt 0:00:00]} Bh3 {[%emt 0:
00:00]} 18. fxe5 {[%emt 0:00:00]} Kg7 {[%emt 0:00:00]} 19. Re3 {[%emt 0:00:00]}
Re7 {[%emt 0:00:00]} 20. Rhe1 {[%emt 0:00:00]} Rf8 {[%emt 0:00:00]} 21. Re4 {
[%emt 0:00:00]} Bg4 {[%emt 0:00:00]} 22. Rf4 {[%emt 0:00:00]} Rfe8 {[%emt 0:00:
00]} 23. Rfe4 {[%emt 0:00:00]} Kg6 {[%emt 0:00:00]} 24. Nb3 {[%emt 0:00:00]}
Bf5 {[%emt 0:00:00]} 25. R4e3 {[%emt 0:00:00]} Rd8 {[%emt 0:00:00]} 26. Na5 {
[%emt 0:00:00]} Bc8 {[%emt 0:00:00]} 27. Kc2 {[%emt 0:00:00]} c5 {[%emt 0:00:
00]} 28. Kc3 {[%emt 0:00:00]} Re6 {[%emt 0:00:00]} 29. Nb3 {[%emt 0:00:00]} b6
{[%emt 0:00:00]} 30. Nc1 {[%emt 0:00:00]} Re7 {[%emt 0:00:00]} 31. Nd3 {
[%emt 0:00:00]} c6 {[%emt 0:00:00]} 32. Rf1 {[%emt 0:00:00]} Bf5 {[%emt 0:00:
00]} 33. Nf4+ {[%emt 0:00:00]} Kh6 {[%emt 0:00:00]} 34. e6 {[%emt 0:00:00]} b5
{[%emt 0:00:00]} 35. Re5 {[%emt 0:00:00]} b4+ {[%emt 0:00:00]} 36. Kb3 {
[%emt 0:00:00]} Bg4 {[%emt 0:00:00]} 37. a4 {[%emt 0:00:00]} Bd1+ {[%emt 0:00:
00]} 38. Ka2 {[%emt 0:00:00]} Bxa4 {[%emt 0:00:00]} 39. Rxh5+ {[%emt 0:00:00]}
Kg7 {[%emt 0:00:00]} 40. Rxc5 {[%emt 0:00:00]} Kh6 {[%emt 0:00:00]} 41. h4 {
[%emt 0:00:00]} Bc2 {[%emt 0:00:00]} 42. Rxc6 {[%emt 0:00:08]} Be4 {[%emt 0:00:
00]} 43. Rc5 {[%emt 0:00:10]} Rg8 {[%emt 0:00:00]} 44. Rh5+ {[%emt 0:00:00]}
Kg7 {[%emt 0:00:00]} 45. Re5 {[%emt 0:00:00]} Bc2 {[%emt 0:00:00]} 46. Nd5 {
[%emt 0:00:00]} Rb7 {[%emt 0:00:00]} 47. e7 {[%emt 0:00:00]} b3+ {[%emt 0:00:
00]} 48. Ka3 {[%emt 0:00:00]} Re8 {[%emt 0:00:00]} 49. Rg5+ {[%emt 0:00:00]}
Bg6 {[%emt 0:00:00]} 50. h5 {[%emt 0:00:00]} 1-0

[Event "Gibraltar Masters 18th"]
[Site "Gibraltar"]
[Date "2020.01.30"]
[Round "10.50"]
[White "Ranaldi, Lucas"]
[Black "Stefanova, Antoaneta"]
[Result "0-1"]
[ECO "A13"]
[WhiteElo "2296"]
[BlackElo "2469"]
[PlyCount "80"]
[EventDate "2020.01.21"]
[EventType "swiss"]
[EventRounds "10"]
[EventCountry "GGB"]
[SourceTitle "BritBase"]
[Source "John Saunders"]
[SourceDate "2021.06.05"]
[SourceVersion "1"]
[SourceVersionDate "2021.06.05"]
[SourceQuality "1"]
[TimeControl "40/100:0"]
[WhiteClock "0:01:08"]
[BlackClock "0:02:23"]

1. c4 {[%emt 0:00:05]} e6 {[%emt 0:00:00]} 2. Nf3 {[%emt 0:00:00]} d5 {[%emt 0:
00:00]} 3. b3 {[%emt 0:00:00]} d4 {[%emt 0:00:00]} 4. g3 {[%emt 0:00:00]} c5 {
[%emt 0:00:00]} 5. Bg2 {[%emt 0:00:00]} Nc6 {[%emt 0:00:00]} 6. O-O {[%emt 0:
00:00]} Bd6 {[%emt 0:00:00]} 7. e3 {[%emt 0:00:00]} Nge7 {[%emt 0:00:00]} 8.
exd4 {[%emt 0:00:00]} cxd4 {[%emt 0:00:00]} 9. d3 {[%emt 0:00:00]} O-O {
[%emt 0:00:00]} 10. Na3 {[%emt 0:00:00]} e5 {[%emt 0:00:00]} 11. Nc2 {[%emt 0:
00:00]} f6 {[%emt 0:00:00]} 12. a3 {[%emt 0:00:00]} a5 {[%emt 0:00:00]} 13. Bd2
{[%emt 0:00:00]} Bf5 {[%emt 0:00:00]} 14. Qe2 {[%emt 0:00:00]} Ng6 {[%emt 0:00:
00]} 15. Rfb1 {[%emt 0:00:00]} Re8 {[%emt 0:00:00]} 16. Nfe1 {[%emt 0:00:00]}
Qe7 {[%emt 0:00:00]} 17. Qf3 {[%emt 0:00:00]} Bc8 {[%emt 0:00:00]} 18. Qd1 {
[%emt 0:00:00]} Kh8 {[%emt 0:00:00]} 19. Rb2 {[%emt 0:00:00]} f5 {[%emt 0:00:
00]} 20. b4 {[%emt 0:00:00]} Qf6 {[%emt 0:00:00]} 21. bxa5 {[%emt 0:00:00]} e4
{[%emt 0:00:00]} 22. Nb4 {[%emt 0:00:00]} e3 {[%emt 0:00:00]} 23. Bc1 {[%emt 0:
00:00]} f4 {[%emt 0:00:00]} 24. Nd5 {[%emt 0:00:00]} Qg5 {[%emt 0:00:00]} 25.
Nb6 {[%emt 0:00:00]} exf2+ {[%emt 0:00:00]} 26. Rxf2 {[%emt 0:00:00]} Qxa5 {
[%emt 0:00:00]} 27. Re2 {[%emt 0:00:00]} Bg4 {[%emt 0:00:00]} 28. Rxe8+ {
[%emt 0:00:00]} Rxe8 {[%emt 0:00:00]} 29. Bd2 {[%emt 0:00:00]} Qh5 {[%emt 0:00:
00]} 30. Qa4 {[%emt 0:00:00]} f3 {[%emt 0:00:00]} 31. Qb5 {[%emt 0:00:41]} fxg2
{[%emt 0:00:00]} 32. Qxh5 {[%emt 0:00:03]} Bxh5 {[%emt 0:00:00]} 33. Nxg2 {
[%emt 0:00:02]} Nge5 {[%emt 0:00:00]} 34. Ne1 {[%emt 0:00:00]} Be2 {[%emt 0:00:
00]} 35. Bf4 {[%emt 0:00:00]} Bf8 {[%emt 0:00:00]} 36. Ra2 {[%emt 0:00:11]}
Bxd3 {[%emt 0:00:00]} 37. Bxe5 {[%emt 0:00:06]} Nxe5 {[%emt 0:00:00]} 38. Nxd3
{[%emt 0:00:00]} Nxd3 {[%emt 0:00:00]} 39. Rd2 {[%emt 0:00:00]} Ne5 {[%emt 0:
00:00]} 40. Kg2 {[%emt 0:00:00]} Bxa3 {[%emt 0:00:00]} 0-1

[Event "Gibraltar Masters 18th"]
[Site "Gibraltar"]
[Date "2020.01.30"]
[Round "10.51"]
[White "Antova, Gabriela"]
[Black "Paehtz, Elisabeth"]
[Result "0-1"]
[ECO "E92"]
[WhiteElo "2295"]
[BlackElo "2467"]
[PlyCount "64"]
[EventDate "2020.01.21"]
[EventType "swiss"]
[EventRounds "10"]
[EventCountry "GGB"]
[SourceTitle "BritBase"]
[Source "John Saunders"]
[SourceDate "2021.06.05"]
[SourceVersion "1"]
[SourceVersionDate "2021.06.05"]
[SourceQuality "1"]
[TimeControl "40/100:0"]
[WhiteClock "0:01:16"]
[BlackClock "0:49:49"]

1. d4 {[%emt 0:00:00]} Nf6 {[%emt 0:00:00]} 2. c4 {[%emt 0:00:00]} g6 {[%emt 0:
00:00]} 3. Nc3 {[%emt 0:00:00]} Bg7 {[%emt 0:00:00]} 4. e4 {[%emt 0:00:00]} d6
{[%emt 0:00:00]} 5. Nf3 {[%emt 0:00:00]} O-O {[%emt 0:00:00]} 6. Be2 {[%emt 0:
00:00]} e5 {[%emt 0:00:00]} 7. Be3 {[%emt 0:00:00]} Qe8 {[%emt 0:00:00]} 8.
dxe5 {[%emt 0:00:00]} Ng4 {[%emt 0:00:00]} 9. Bg5 {[%emt 0:00:00]} Nxe5 {
[%emt 0:00:00]} 10. Nd4 {[%emt 0:00:00]} Be6 {[%emt 0:00:00]} 11. Nxe6 {
[%emt 0:00:00]} fxe6 {[%emt 0:00:00]} 12. O-O {[%emt 0:00:00]} Nbc6 {[%emt 0:
00:00]} 13. Nb5 {[%emt 0:00:00]} Qd7 {[%emt 0:00:00]} 14. Be3 {[%emt 0:00:00]}
a6 {[%emt 0:00:00]} 15. Na3 {[%emt 0:00:00]} Qe7 {[%emt 0:00:00]} 16. Qd2 {
[%emt 0:00:00]} Nd7 {[%emt 0:00:00]} 17. Rad1 {[%emt 0:00:00]} Nc5 {[%emt 0:00:
00]} 18. f3 {[%emt 0:00:00]} Rf7 {[%emt 0:00:00]} 19. Nb1 {[%emt 0:00:00]} a5 {
[%emt 0:00:00]} 20. Nc3 {[%emt 0:00:00]} Raf8 {[%emt 0:00:00]} 21. Qc2 {
[%emt 0:00:00]} Qe8 {[%emt 0:00:00]} 22. Rd2 {[%emt 0:00:00]} e5 {[%emt 0:00:
00]} 23. Nb5 {[%emt 0:00:00]} b6 {[%emt 0:00:00]} 24. Bd1 {[%emt 0:00:00]} Qe7
{[%emt 0:00:00]} 25. a3 {[%emt 0:00:00]} Qh4 {[%emt 0:00:00]} 26. Rff2 {
[%emt 0:00:00]} Bh6 {[%emt 0:00:00]} 27. Bxh6 {[%emt 0:00:00]} Qxh6 {[%emt 0:
00:00]} 28. Qc3 {[%emt 0:00:00]} a4 {[%emt 0:00:00]} 29. Rde2 {[%emt 0:00:00]}
Na5 {[%emt 0:00:00]} 30. Rd2 {[%emt 0:00:00]} Qg5 {[%emt 0:00:00]} 31. g3 {
[%emt 0:00:15]} h5 {[%emt 0:00:00]} 32. Kh1 {[%emt 0:00:09]} Nxe4 {[%emt 0:00:
00]} 0-1